{"text_format":"2","workbook":"xlsx","n_sheets":1,"sheets":["Лист1"],"not_rendered":{"charts":0,"images":0,"macros":0,"external_links":0,"defined_names":0,"comments":0,"pivot_tables":0},"unopened":[],"bounds":{"document_bytes":16777216,"sheet_cells":100000,"run_cost":"one","rows_first":2000,"rows_last":500,"rows_between":2000,"halvings":0,"cell_chars":16384,"cell_head_chars":4096},"cells_cut":0,"cells_raw":0,"read":"whole","date_system":"1900"}

{"sheet":"Лист1","index":0,"n_rows":43,"n_cols":47,"rows_kept":43,"cut":false,"hidden":false,"merged":[[1,1,1,12],[6,13,6,18],[5,3,7,3],[2,1,2,6],[6,37,6,39],[6,25,6,30],[5,5,7,5],[3,1,3,6],[39,1,39,46],[6,43,6,45],[35,1,35,46],[17,1,17,46],[8,1,8,46],[5,6,7,6],[5,1,7,1],[6,40,6,42],[24,1,24,46],[6,34,6,36],[5,46,7,46],[5,34,5,45],[5,2,7,2],[6,7,6,12],[6,19,6,24],[6,31,6,33],[5,4,7,4],[5,7,5,33]]}
[{"$nulls":4},"Отправить данные в минэкономики"]
[null,"Выполнение проектов/мероприятий программы развития производительных сил ","Выполнение проектов/мероприятий программы развития производительных сил ","Выполнение проектов/мероприятий программы развития производительных сил ","Выполнение проектов/мероприятий программы развития производительных сил ","Выполнение проектов/мероприятий программы развития производительных сил ","Выполнение проектов/мероприятий программы развития производительных сил ","Выполнение проектов/мероприятий программы развития производительных сил ","Выполнение проектов/мероприятий программы развития производительных сил ","Выполнение проектов/мероприятий программы развития производительных сил ","Выполнение проектов/мероприятий программы развития производительных сил ","Выполнение проектов/мероприятий программы развития производительных сил ","Выполнение проектов/мероприятий программы развития производительных сил "]
[null,"Княгининский район","Княгининский район","Княгининский район","Княгининский район","Княгининский район","Княгининский район"]
[null,"II полугодие 2017","II полугодие 2017","II полугодие 2017","II полугодие 2017","II полугодие 2017","II полугодие 2017"]
[]
[null,"№","Наименование предприятия/хозяйствующего субъекта (с указанием типа - крупное, среднее, малое, ИП)/наименование поселения","Отрасль","Наименование проекта/мероприятия","Сроки реализации","Ответственный орган исполнительной власти Нижегородской области","Объем финансирования,  млн. руб.","Объем финансирования,  млн. руб.","Объем финансирования,  млн. руб.","Объем финансирования,  млн. руб.","Объем финансирования,  млн. руб.","Объем финансирования,  млн. руб.","Объем финансирования,  млн. руб.","Объем финансирования,  млн. руб.","Объем финансирования,  млн. руб.","Объем финансирования,  млн. руб.","Объем финансирования,  млн. руб.","Объем финансирования,  млн. руб.","Объем финансирования,  млн. руб.","Объем финансирования,  млн. руб.","Объем финансирования,  млн. руб.","Объем финансирования,  млн. руб.","Объем финансирования,  млн. руб.","Объем финансирования,  млн. руб.","Объем финансирования,  млн. руб.","Объем финансирования,  млн. руб.","Объем финансирования,  млн. руб.","Объем финансирования,  млн. руб.","Объем финансирования,  млн. руб.","Объем финансирования,  млн. руб.","Объем финансирования,  млн. руб.","Объем финансирования,  млн. руб.","Объем финансирования,  млн. руб.","Эффект от реализации проектов /мероприятий","Эффект от реализации проектов /мероприятий","Эффект от реализации проектов /мероприятий","Эффект от реализации проектов /мероприятий","Эффект от реализации проектов /мероприятий","Эффект от реализации проектов /мероприятий","Эффект от реализации проектов /мероприятий","Эффект от реализации проектов /мероприятий","Эффект от реализации проектов /мероприятий","Эффект от реализации проектов /мероприятий","Эффект от реализации проектов /мероприятий","Эффект от реализации проектов /мероприятий","Дополнительная информация о проекте/мероприятии (с указанием причин невыполнения)"]
[null,"№","Наименование предприятия/хозяйствующего субъекта (с указанием типа - крупное, среднее, малое, ИП)/наименование поселения","Отрасль","Наименование проекта/мероприятия","Сроки реализации","Ответственный орган исполнительной власти Нижегородской области","Всего, в т.ч.","Всего, в т.ч.","Всего, в т.ч.","Всего, в т.ч.","Всего, в т.ч.","Всего, в т.ч.","Федеральный бюджет","Федеральный бюджет","Федеральный бюджет","Федеральный бюджет","Федеральный бюджет","Федеральный бюджет","Областной бюджет","Областной бюджет","Областной бюджет","Областной бюджет","Областной бюджет","Областной бюджет","Местный бюджет","Местный бюджет","Местный бюджет","Местный бюджет","Местный бюджет","Местный бюджет","Частные инвестиции (собственные и привлеченные средства)","Частные инвестиции (собственные и привлеченные средства)","Частные инвестиции (собственные и привлеченные средства)","Объем отгруженной продукции (услуг), млн.руб.","Объем отгруженной продукции (услуг), млн.руб.","Объем отгруженной продукции (услуг), млн.руб.","Объем оборота розничной торговли и общественного питания, млн. руб.","Объем оборота розничной торговли и общественного питания, млн. руб.","Объем оборота розничной торговли и общественного питания, млн. руб.","Налоговые поступления в консолидированный бюджет, млн.руб.","Налоговые поступления в консолидированный бюджет, млн.руб.","Налоговые поступления в консолидированный бюджет, млн.руб.","Создано рабочих мест, ед.","Создано рабочих мест, ед.","Создано рабочих мест, ед.","Дополнительная информация о проекте/мероприятии (с указанием причин невыполнения)"]
[null,"№","Наименование предприятия/хозяйствующего субъекта (с указанием типа - крупное, среднее, малое, ИП)/наименование поселения","Отрасль","Наименование проекта/мероприятия","Сроки реализации","Ответственный орган исполнительной власти Нижегородской области","План","Профинансировано в рамках ПРПС","Освоено (кассовые расходы) в рамках ПРПС","% финансирования от плана","% освоения средств от объема финансирования","% освоения средств от плана","План","Профинансировано в рамках ПРПС","Освоено (кассовые расходы) в рамках ПРПС","% финансирования от плана","% освоения средств от объема финансирования","% освоения средств от плана","План","Профинансировано в рамках ПРПС","Освоено (кассовые расходы) в рамках ПРПС","% финансирования от плана","% освоения средств от объема финансирования","% освоения средств от плана","План","Профинансировано в рамках ПРПС","Освоено (кассовые расходы) в рамках ПРПС","% финансирования от плана","% освоения средств от объема финансирования","% освоения средств от плана","План","Факт","% от плана","План","Факт","% от плана","План","Факт","% от плана","План","Факт","% от плана","План","Факт","% от плана","Дополнительная информация о проекте/мероприятии (с указанием причин невыполнения)"]
[null,"Промышленность","Промышленность","Промышленность","Промышленность","Промышленность","Промышленность","Промышленность","Промышленность","Промышленность","Промышленность","Промышленность","Промышленность","Промышленность","Промышленность","Промышленность","Промышленность","Промышленность","Промышленность","Промышленность","Промышленность","Промышленность","Промышленность","Промышленность","Промышленность","Промышленность","Промышленность","Промышленность","Промышленность","Промышленность","Промышленность","Промышленность","Промышленность","Промышленность","Промышленность","Промышленность","Промышленность","Промышленность","Промышленность","Промышленность","Промышленность","Промышленность","Промышленность","Промышленность","Промышленность","Промышленность","Промышленность"]
[null,"10.86","ГБОУ ВО \"Нижегородский государственный инженерно-экономический университет\" / Среднее / ","Строительство","Реконструкция учебно-лабораторного корпуса №3 по адресу: г.Княгинино, ул.Октябрьская, д.22а","2018 - 2018","Администрация муниципального района (городского округа)",0,{"$nulls":23},0]
[null,"2.259","ОАО \"Княгининское молоко\"  / Крупное / ","Пищевая промышленность","Модернизация головного предприятия ОАО \"Княгининское молоко\"","2010 - 2019","Министерство сельского хозяйства и продовольственных ресурсов Нижегородской области ",60.120000000000005,11.81,60.120000000000005,19.644045242847636,509.06011854360708,99.999999999999986,7.94,7.94,7.94,100,100,100,3.87,3.87,3.87,100,100,100,{"$nulls":6},48.31,48.31,100,2500,2594.5,103.78,null,null,null,45.5,45.5,100]
[null,"2.260","ООО \"Крупко\" / Малое / ","Пищевая промышленность","Увеличение объёмов производства крупяных изделий ","2010 - 2019","Министерство сельского хозяйства и продовольственных ресурсов Нижегородской области ",0,{"$nulls":23},0]
[null,"2.261","ООО \"Сервис-НН\" / Малое / ","Пищевая промышленность","Открытие производства минеральных вод и других безалкогольных напитков","2015 - 2019","Министерство сельского хозяйства и продовольственных ресурсов Нижегородской области ",0,{"$nulls":23},0]
[null,"2.262","ООО \"Водолей\"  / Малое / ","Пищевая промышленность","Открытие производства бутилированной воды","2013 - 2019","Министерство сельского хозяйства и продовольственных ресурсов Нижегородской области ",0,{"$nulls":23},0,null,null,1.1400000000000001,1.1400000000000001,100,null,null,null,0.3,0.3,100]
[null,"2.263","ООО \"Колобок\" / Малое / ","Пищевая промышленность","Реконструкция производства на ООО \"Колобок\"","2016 - 2019","Министерство сельского хозяйства и продовольственных ресурсов Нижегородской области ",0,{"$nulls":23},0,null,null,35,37.5,107.1,null,null,null,2.5,2.5,100]
[null,"1.730.","ООО \"Княгиниская ДСК\" / Малое / ","Строительство","Производство общестроительных работ по строительству автомобильных дорог, железных дорог и взлетно-посадочных полос аэродрома","2015 - 2019","Министерство промышленности, торговли и предпринимательства Нижегородской области",0,{"$nulls":23},0,null,null,59,40.6,68.8,null,null,null,2.5,2.5,100]
[null,"1.731.","ИП \"Емельянов\" / ИП / ","Пищевая промышленность","Открытие производства мясных полуфабрикатов","2017 - 2019","Министерство промышленности, торговли и предпринимательства Нижегородской области",1,null,1,0,null,100,{"$nulls":18},1,1,100,0.2,0.2,100,null,null,null,0.02,0.02,100,1,1,100]
[null,"Сельское хозяйство","Сельское хозяйство","Сельское хозяйство","Сельское хозяйство","Сельское хозяйство","Сельское хозяйство","Сельское хозяйство","Сельское хозяйство","Сельское хозяйство","Сельское хозяйство","Сельское хозяйство","Сельское хозяйство","Сельское хозяйство","Сельское хозяйство","Сельское хозяйство","Сельское хозяйство","Сельское хозяйство","Сельское хозяйство","Сельское хозяйство","Сельское хозяйство","Сельское хозяйство","Сельское хозяйство","Сельское хозяйство","Сельское хозяйство","Сельское хозяйство","Сельское хозяйство","Сельское хозяйство","Сельское хозяйство","Сельское хозяйство","Сельское хозяйство","Сельское хозяйство","Сельское хозяйство","Сельское хозяйство","Сельское хозяйство","Сельское хозяйство","Сельское хозяйство","Сельское хозяйство","Сельское хозяйство","Сельское хозяйство","Сельское хозяйство","Сельское хозяйство","Сельское хозяйство","Сельское хозяйство","Сельское хозяйство","Сельское хозяйство","Сельское хозяйство"]
[null,"2.264","ЗАО \"Покровская слобода\" / Малое / ","Животноводство","Реконструкция животноводческих комплексов на 200 голов ","2010 - 2019","Министерство сельского хозяйства и продовольственных ресурсов Нижегородской области ",0,{"$nulls":23},0,null,null,21,21,0,null,null,null,1.31,1.31,0]
[null,"2.265","Сельскохозяйственные предприятия и организации, КФХ  / Малое / ","Растениеводство","Приобретение энергосберегающей, высокопроизводительной техники","2010 - 2019","Министерство сельского хозяйства и продовольственных ресурсов Нижегородской области ",40,null,40,0,null,100,{"$nulls":18},40,40,100,1.3,1.3,100,null,null,null,0.15,0.15,100,2,2,100]
[null,"2.266","Сельскохозяйственные предприятия и организации, КФХ  / Малое / ","Животноводство","Приобретение племенного скота","2010 - 2019","Министерство сельского хозяйства и продовольственных ресурсов Нижегородской области ",0,{"$nulls":23},0]
[null,"2.267","ЛПХ и КФХ / Малое / ","Сельское хозяйство","Развитие ЛПХ и КФХ, льготное кредитование ЛПХ и КФХ","2010 - 2019","Министерство сельского хозяйства и продовольственных ресурсов Нижегородской области ",0,{"$nulls":23},0]
[null,"2.268","КФХ \"Полянская С.М., Амоян Х.О.\"  / Малое / ","Сельское хозяйство","Развитие семейных животноводческих ферм","2014 - 2019","Министерство сельского хозяйства и продовольственных ресурсов Нижегородской области ",0,{"$nulls":23},0,null,null,16.5,16.5,100,null,null,null,0.4,0.4,100]
[null,"2.269","КФХ \"Гасоян В.М.\" / Малое / ","Сельское хозяйство","Развитие семейных животноводческих ферм","2014 - 2019","Министерство сельского хозяйства и продовольственных ресурсов Нижегородской области ",0,{"$nulls":23},0,null,null,23,23,100,null,null,null,1.5,1.5,100]
[null,"Торговля, общественное питание, платные услуги населению","Торговля, общественное питание, платные услуги населению","Торговля, общественное питание, платные услуги населению","Торговля, общественное питание, платные услуги населению","Торговля, общественное питание, платные услуги населению","Торговля, общественное питание, платные услуги населению","Торговля, общественное питание, платные услуги населению","Торговля, общественное питание, платные услуги населению","Торговля, общественное питание, платные услуги населению","Торговля, общественное питание, платные услуги населению","Торговля, общественное питание, платные услуги населению","Торговля, общественное питание, платные услуги населению","Торговля, общественное питание, платные услуги населению","Торговля, общественное питание, платные услуги населению","Торговля, общественное питание, платные услуги населению","Торговля, общественное питание, платные услуги населению","Торговля, общественное питание, платные услуги населению","Торговля, общественное питание, платные услуги населению","Торговля, общественное питание, платные услуги населению","Торговля, общественное питание, платные услуги населению","Торговля, общественное питание, платные услуги населению","Торговля, общественное питание, платные услуги населению","Торговля, общественное питание, платные услуги населению","Торговля, общественное питание, платные услуги населению","Торговля, общественное питание, платные услуги населению","Торговля, общественное питание, платные услуги населению","Торговля, общественное питание, платные услуги населению","Торговля, общественное питание, платные услуги населению","Торговля, общественное питание, платные услуги населению","Торговля, общественное питание, платные услуги населению","Торговля, общественное питание, платные услуги населению","Торговля, общественное питание, платные услуги населению","Торговля, общественное питание, платные услуги населению","Торговля, общественное питание, платные услуги населению","Торговля, общественное питание, платные услуги населению","Торговля, общественное питание, платные услуги населению","Торговля, общественное питание, платные услуги населению","Торговля, общественное питание, платные услуги населению","Торговля, общественное питание, платные услуги населению","Торговля, общественное питание, платные услуги населению","Торговля, общественное питание, платные услуги населению","Торговля, общественное питание, платные услуги населению","Торговля, общественное питание, платные услуги населению","Торговля, общественное питание, платные услуги населению","Торговля, общественное питание, платные услуги населению","Торговля, общественное питание, платные услуги населению"]
[null,"10.87","Администрация Княгининского муниципального района / Среднее / ","Розничная торговля","Строительство здания на площади \"Ярмарки выходного дня\"","2016 - 2019","Администрация муниципального района (городского округа)",3.2670000000000003,3.2670000000000003,3.2670000000000003,100,100,100,{"$nulls":12},3.2670000000000003,3.2670000000000003,3.2670000000000003,100,100,100]
[null,"1.732.","ЗАО \"ИКС 5 Недвижимость\" / Крупное / ","Торговля","Строительство магазина \"Пятерочка\"","2014 - 2019","Министерство промышленности, торговли и предпринимательства Нижегородской области",0,{"$nulls":23},0,{"$nulls":5},84,84,100,0.89,0.89,100]
[null,"1.733.","ООО \"Магистраль\" / Малое / ","Торговля, общественное питание","Строительство гостиницы","2016 - 2019","Министерство промышленности, торговли и предпринимательства Нижегородской области",0,{"$nulls":23},0]
[null,"1.734.","МУП \"Княгининское ЖКХ\" / Среднее / ","Платные услуги","Строительство муниципальной бани","2014 - 2019","Министерство промышленности, торговли и предпринимательства Нижегородской области",0,{"$nulls":23},0,null,null,0.6,0.6,100,null,null,null,0.1,0.1,100]
[null,"1.735.","ООО \"Магистраль\" / Малое / ","Торговля, общественное питание","Реконструкция кафе 45-й км","2015 - 2019","Министерство промышленности, торговли и предпринимательства Нижегородской области",0,{"$nulls":23},0,null,null,7.5,7.9,105.3,5,5.0999999999999996,102,0.2,0.2,100]
[null,"1.736.","ИП \"Тюльнев\" / ИП / ","Торговля, общественное питание","Реконструкция здания столовой в кафе на 90 посадочных мест","2014 - 2019","Министерство промышленности, торговли и предпринимательства Нижегородской области",0,{"$nulls":23},0,{"$nulls":5},1.1000000000000001,1.1000000000000001,100,0.1,0.1,100]
[null,"1.737","ИП \"Звягинцев\" / ИП / ","Торговля, общественное питание","Реконструкция кафе-пицерия","2017 - 2019","Министерство промышленности, торговли и предпринимательства Нижегородской области",1,null,1,0,null,100,{"$nulls":18},1,1,100,null,null,null,0.5,0.5,100,0.04,0.04,100,4,4,100]
[null,"1.738.","ИП \"Водянова\" / ИП / ","Торговля, общественное питание","Открытие кафе-пицерия","2017 - 2019","Министерство промышленности, торговли и предпринимательства Нижегородской области",0.5,null,0.5,0,null,100,{"$nulls":18},0.5,0.5,100,null,null,null,0.6,0.6,100,0.04,0.04,100,4,4,100]
[null,"1.739.","ИП, малые предприятия / ИП / ","Торговля","Строительство 3-х торговых центров в г. Княгинино","2017 - 2019","Министерство промышленности, торговли и предпринимательства Нижегородской области",15,null,15,0,null,100,{"$nulls":18},15,15,100,{"$nulls":6},0.03,0.03,100,2,2,100]
[null,"1.740.","ИП, малые предприятия / ИП / ","Розничная торговля","Строительство, реконструкция зданий 4-х магазинов в г.Княгинино","2016 - 2019","Министерство промышленности, торговли и предпринимательства Нижегородской области",3,null,3,0,null,100,{"$nulls":18},3,3,100,null,null,null,5.2,5.2,100,0.08,0.08,100]
[null,"Инженерная инфраструктура","Инженерная инфраструктура","Инженерная инфраструктура","Инженерная инфраструктура","Инженерная инфраструктура","Инженерная инфраструктура","Инженерная инфраструктура","Инженерная инфраструктура","Инженерная инфраструктура","Инженерная инфраструктура","Инженерная инфраструктура","Инженерная инфраструктура","Инженерная инфраструктура","Инженерная инфраструктура","Инженерная инфраструктура","Инженерная инфраструктура","Инженерная инфраструктура","Инженерная инфраструктура","Инженерная инфраструктура","Инженерная инфраструктура","Инженерная инфраструктура","Инженерная инфраструктура","Инженерная инфраструктура","Инженерная инфраструктура","Инженерная инфраструктура","Инженерная инфраструктура","Инженерная инфраструктура","Инженерная инфраструктура","Инженерная инфраструктура","Инженерная инфраструктура","Инженерная инфраструктура","Инженерная инфраструктура","Инженерная инфраструктура","Инженерная инфраструктура","Инженерная инфраструктура","Инженерная инфраструктура","Инженерная инфраструктура","Инженерная инфраструктура","Инженерная инфраструктура","Инженерная инфраструктура","Инженерная инфраструктура","Инженерная инфраструктура","Инженерная инфраструктура","Инженерная инфраструктура","Инженерная инфраструктура","Инженерная инфраструктура"]
[null,"10.83","Администрация Княгининского муниципального района / Среднее / ","Инженерная инфраструктура","Участие проекта \"Благоустройство центрального сквера в городе Княгинино\" в конкурсном отборе программ (проектов) развития территорий муниципальных образований Нижегородской области, основанных на местных инициативах\"","2017 - 2017","Администрация муниципального района (городского округа)",3.6,3,3.6,83.333333333333329,120,100,{"$nulls":6},1.7,1.7,1.7,100,100,100,1.3,1.3,1.3,100,100,100,0.6,0.6,100]
[null,"10.84","Администрация Княгининского муниципального района / Среднее / ","Инженерная инфраструктура","Благоустройство сквера в г.Княгинино в рамках реализации проекта партии \"Единая Россия\" \"Парки малых городов\"","2017 - 2017","Администрация муниципального района (городского округа)",4.4000000000000004,4.4000000000000004,4.4000000000000004,100,100,100,1.4000000000000001,1.4000000000000001,1.4000000000000001,99.999999999999986,99.999999999999986,99.999999999999986,1.7,1.7,1.7,100,100,100,1.3,1.3,1.3,100,100,100]
[null,"10.87.1","Администрация Княгининского муниципального района / Среднее / ","Инженерная инфраструктура","Формирование современной городской среды на территории города Княгинино Княгининского района Нижегородской области на 2018-2022 годы","2018 - 2018","Администрация муниципального района (городского округа)",0,{"$nulls":23},0]
[null,"Транспортная инфраструктура","Транспортная инфраструктура","Транспортная инфраструктура","Транспортная инфраструктура","Транспортная инфраструктура","Транспортная инфраструктура","Транспортная инфраструктура","Транспортная инфраструктура","Транспортная инфраструктура","Транспортная инфраструктура","Транспортная инфраструктура","Транспортная инфраструктура","Транспортная инфраструктура","Транспортная инфраструктура","Транспортная инфраструктура","Транспортная инфраструктура","Транспортная инфраструктура","Транспортная инфраструктура","Транспортная инфраструктура","Транспортная инфраструктура","Транспортная инфраструктура","Транспортная инфраструктура","Транспортная инфраструктура","Транспортная инфраструктура","Транспортная инфраструктура","Транспортная инфраструктура","Транспортная инфраструктура","Транспортная инфраструктура","Транспортная инфраструктура","Транспортная инфраструктура","Транспортная инфраструктура","Транспортная инфраструктура","Транспортная инфраструктура","Транспортная инфраструктура","Транспортная инфраструктура","Транспортная инфраструктура","Транспортная инфраструктура","Транспортная инфраструктура","Транспортная инфраструктура","Транспортная инфраструктура","Транспортная инфраструктура","Транспортная инфраструктура","Транспортная инфраструктура","Транспортная инфраструктура","Транспортная инфраструктура","Транспортная инфраструктура"]
[null,"3.72.1","Администрация Княгининского муниципального района / Среднее / ","Дорожное строительство","Строительство мостового перехода через р.Степановка на автомобильной дороге (22 ОП НР 22К-0043) Лысково-Княгинино км 16+091 в Княгининском районе Нижегородской области","2018 - 2018","Министерство строительства Нижегородской области",0,{"$nulls":23},0]
[null,"10.85","Администрация Княгининского муниципального района / Среднее / ","Дорожное строительство","Ремонт основной (центральной) ул.Октябрьская в г.Княгинино Нижегородской области","2018 - 2018","Администрация муниципального района (городского округа)",1.3,1.3,1.3,100,100,100,{"$nulls":6},1,1,1,100,100,100,0.3,0.3,0.3,100,100,100]
[{"$nulls":6},"Итого:",{"$f":"SUM(H10:H17,H19:H24,H26:H35,H37:H39,H41:H42)","v":133.18700000000001},{"$f":"SUM(I10:I17,I19:I24,I26:I35,I37:I39,I41:I42)","v":23.777000000000005},{"$f":"SUM(J10:J17,J19:J24,J26:J35,J37:J39,J41:J42)","v":133.18700000000001},17.8,560.20000000000005,100,{"$f":"SUM(N10:N17,N19:N24,N26:N35,N37:N39,N41:N42)","v":9.34},9.34,9.34,100,100,100,{"$f":"SUM(T10:T17,T19:T24,T26:T35,T37:T39,T41:T42)","v":8.27},{"$f":"SUM(U10:U17,U19:U24,U26:U35,U37:U39,U41:U42)","v":8.27},{"$f":"SUM(V10:V17,V19:V24,V26:V35,V37:V39,V41:V42)","v":8.27},100,100,100,{"$f":"SUM(Z10:Z17,Z19:Z24,Z26:Z35,Z37:Z39,Z41:Z42)","v":6.1669999999999998},{"$f":"SUM(AA10:AA17,AA19:AA24,AA26:AA35,AA37:AA39,AA41:AA42)","v":6.1669999999999998},{"$f":"SUM(AB10:AB17,AB19:AB24,AB26:AB35,AB37:AB39,AB41:AB42)","v":6.1669999999999998},100,100,100,{"$f":"SUM(AF10:AF17,AF19:AF24,AF26:AF35,AF37:AF39,AF41:AF42)","v":109.41},{"$f":"SUM(AG10:AG17,AG19:AG24,AG26:AG35,AG37:AG39,AG41:AG42)","v":109.41},100,{"$f":"SUM(AI10:AI17,AI19:AI24,AI26:AI35,AI37:AI39,AI41:AI42)","v":2665.24},{"$f":"SUM(AJ10:AJ17,AJ19:AJ24,AJ26:AJ35,AJ37:AJ39,AJ41:AJ42)","v":2744.24},102.96,{"$f":"SUM(AL10:AL17,AL19:AL24,AL26:AL35,AL37:AL39,AL41:AL42)","v":96.399999999999991},{"$f":"SUM(AM10:AM17,AM19:AM24,AM26:AM35,AM37:AM39,AM41:AM42)","v":96.499999999999986},100.1,{"$f":"SUM(AO10:AO17,AO19:AO24,AO26:AO35,AO37:AO39,AO41:AO42)","v":55.660000000000004},{"$f":"SUM(AP10:AP17,AP19:AP24,AP26:AP35,AP37:AP39,AP41:AP42)","v":55.660000000000004},100,{"$f":"SUM(AR10:AR17,AR19:AR24,AR26:AR35,AR37:AR39,AR41:AR42)","v":13},{"$f":"SUM(AS10:AS17,AS19:AS24,AS26:AS35,AS37:AS39,AS41:AS42)","v":13},100,{"$f":"SUM(AU10:AU17,AU19:AU24,AU26:AU35,AU37:AU39,AU41:AU42)","v":0}]